Business Unit,Business Code,Service Code,Service Label,Organisational Unit,Expenditure,Invoice/Credit Note,Net Payments,Transaction Number,Payment Date,Supplier ID,Supplier Name
North West Leicestershire District Council,31UH,HLC,Leisure Centres,Hermitage Leisure Centre,Operational Equipment,Invoice,401.76,1300438,04/02/2015,A000969,J P Lennard Ltd
North West Leicestershire District Council,31UH,ENOP,Street Management,Environment Parks,General Repairs,Invoice,286.65,1300451,04/02/2015,A000928,LBS Horticulture Limited
North West Leicestershire District Council,31UH,HRAPBS,Housing,HRA Performance & Business Support,Computing,Invoice,950.00,1300691,11/02/2015,A041321,Oneserve Ltd
North West Leicestershire District Council,31UH,ICT,Information Technology,ICT Services,Administrative Equipment,Invoice,349.00,1300693,11/02/2015,A025151,Probrand Limited
North West Leicestershire District Council,31UH,ENOP,Street Management,Environment Parks,Operational Equipment - Purchases,Invoice,433.40,1300724,04/02/2015,A001392,Rigby Taylor Limited
North West Leicestershire District Council,31UH,ENOT,Street Management,Environment Transport,Repairs - Parts,Invoice,927.90,1300710,04/02/2015,A035291,Mertrux
North West Leicestershire District Council,31UH,HLBC,Leisure Centres,Hermitage Bar & Catering,Catering Provisions,Invoice,377.36,1300709,04/02/2015,A001264,Palmer Harvey Mclane Ltd
North West Leicestershire District Council,31UH,HLBC,Leisure Centres,Hermitage Bar & Catering,Catering Provisions,Invoice,358.93,1300687,04/02/2015,A000315,Central Catering Supplies
North West Leicestershire District Council,31UH,HLBC,Leisure Centres,Hermitage Bar & Catering,Bar Provisions,Invoice,274.18,1300682,04/02/2015,A039915,LWC - Birmingham
North West Leicestershire District Council,31UH,HLBC,Leisure Centres,Hermitage Bar & Catering,Catering Provisions,Invoice,253.11,1300671,04/02/2015,A000315,Central Catering Supplies
North West Leicestershire District Council,31UH,ENOP,Street Management,Environment Parks,Operational Equipment - Purchases,Invoice,627.78,1300499,04/02/2015,A000757,Henton & Chattell Limited
North West Leicestershire District Council,31UH,HRAPBS,Housing,HRA Performance & Business Support,Agency Staff,Invoice,838.13,1300734,04/02/2015,A041893,Michael Page International Recruitment Ltd
North West Leicestershire District Council,31UH,HRAPBS,Housing,HRA Performance & Business Support,Agency Staff,Invoice,838.13,1300735,04/02/2015,A041893,Michael Page International Recruitment Ltd
North West Leicestershire District Council,31UH,HRAPBS,Housing,HRA Performance & Business Support,Agency Staff,Invoice,838.13,1300737,04/02/2015,A041893,Michael Page International Recruitment Ltd
North West Leicestershire District Council,31UH,CULTHC,Leisure & Culture,Cultural Services Heritage,Promotions Board Campaign,Invoice,"1,500.00",1300738,04/02/2015,A033519,Leicester Shire Promotions
North West Leicestershire District Council,31UH,SPA,Leisure & Culture,Sport & Physical Activity,Local Sports Alliance,Invoice,260.00,1300725,04/02/2015,A042054,Insight 63 Ltd
North West Leicestershire District Council,31UH,HRAHM,Housing,HRA Housing Management,Professional Fees,Invoice,700.00,1300742,04/02/2015,A033843,Housemark Ltd
North West Leicestershire District Council,31UH,HLBC,Leisure Centres,Hermitage Bar & Catering,Catering Provisions,Invoice,451.79,1300764,04/02/2015,A000783,Hopwells Limited
North West Leicestershire District Council,31UH,CP,Communications,Corporate - Communications,Expenditure against earmarked reserve,Invoice,950.00,1300312,04/02/2015,A030559,Chartered Institute of Public Relations
North West Leicestershire District Council,31UH,ENOP,Street Management,Environment Parks,Operational Equipment - Purchases,Invoice,"1,601.80",1301091,04/02/2015,A001392,Rigby Taylor Limited
North West Leicestershire District Council,31UH,LDLS,Legal & Democratic,Legal Services,Agency Staff,Invoice,879.69,1301096,04/02/2015,A028530,Venn Group Limited
North West Leicestershire District Council,31UH,ENOT,Street Management,Environment Transport,Repairs - Parts,Invoice,500.00,1301111,04/02/2015,A000486,Digraph Transport Supplies Ltd
North West Leicestershire District Council,31UH,ECCTV,Planning & Development,Environment - Town Centre/CCTV,Cleaning & Domestic Equipment,Invoice,369.82,1300781,04/02/2015,A040930,Admiral Cleaning Supplies Ltd
North West Leicestershire District Council,31UH,ENOT,Street Management,Environment Transport,Purchases,Invoice,509.05,1300782,04/02/2015,A037391,Emo Oil Limited
North West Leicestershire District Council,31UH,PROPCL,Property Services,Property Commercial Lettings,Building Security,Invoice,399.00,1300784,04/02/2015,A038408,London Fire Consultants & Design
North West Leicestershire District Council,31UH,PROPCL,Property Services,Property Commercial Lettings,Building Security,Invoice,399.00,1300785,04/02/2015,A038408,London Fire Consultants & Design
North West Leicestershire District Council,31UH,PROPCL,Property Services,Property Commercial Lettings,Building Security,Invoice,399.00,1300786,04/02/2015,A038408,London Fire Consultants & Design
North West Leicestershire District Council,31UH,PROPCL,Property Services,Property Commercial Lettings,Building Security,Invoice,499.00,1300787,04/02/2015,A038408,London Fire Consultants & Design
North West Leicestershire District Council,31UH,ENOT,Street Management,Environment Transport,Repairs - Parts,Invoice,250.00,1300788,04/02/2015,A035120,Sherwood Truck and Van Limited
North West Leicestershire District Council,31UH,ENOT,Street Management,Environment Transport,Items To Be Leased,Invoice,"4,442.62",1301085,04/02/2015,A034878,Boughton Loam
North West Leicestershire District Council,31UH,ENOT,Street Management,Environment Transport,Fuel,Invoice,"15,407.09",1301095,04/02/2015,A040946,Hall Fuels (Division of Watson Petroleum
North West Leicestershire District Council,31UH,ENOT,Street Management,Environment Transport,Repairs - Parts,Invoice,564.81,1300716,04/02/2015,A000625,Ford & Slater Group Ltd
North West Leicestershire District Council,31UH,ENOT,Street Management,Environment Transport,Repairs - Parts,Invoice,293.15,1300775,18/03/2015,A001445,Scarab Sweepers Limited
North West Leicestershire District Council,31UH,CULTEV,Leisure & Culture,Cultural Services Arts & Events,Special Events,Invoice,348.00,1300776,04/02/2015,A000374,Coalville Times Ltd
North West Leicestershire District Council,31UH,ICT,Information Technology,ICT Services,Consumable Materials,Invoice,567.27,1300777,04/02/2015,A038178,Antalis Limited
North West Leicestershire District Council,31UH,PROPCL,Property Services,Property Commercial Lettings,Postages,Invoice,"2,019.00",1300779,04/02/2015,A008204,Purchase Power
North West Leicestershire District Council,31UH,EXCH,Finance,Exchequer Services,Other Printing,Invoice,410.76,1301080,04/02/2015,A017790,Select Forms Limited
North West Leicestershire District Council,31UH,ENOWM,Street Management,Environment Waste Management,General Materials,Invoice,"9,926.80",1301093,04/02/2015,A028619,LBK Packaging
North West Leicestershire District Council,31UH,CULTIC,Leisure & Culture,Cultural Services TIC,Civic Functions,Invoice,250.00,1301097,04/02/2015,A027523,Leicestershire Co-op Band
North West Leicestershire District Council,31UH,PROPCL,Property Services,Property Commercial Lettings,General Repairs,Invoice,564.98,1301102,04/02/2015,A001092,John Merison BMC
North West Leicestershire District Council,31UH,PROPCL,Property Services,Property Commercial Lettings,General Repairs,Invoice,899.36,1301104,04/02/2015,A001092,John Merison BMC
North West Leicestershire District Council,31UH,HPLC,Leisure Centres,Hood Park Leisure Centre,General Repairs,Invoice,358.21,1300741,11/02/2015,A033909,Audience Systems Limited
North West Leicestershire District Council,31UH,PROPCL,Property Services,Property Commercial Lettings,Fire Precaution Appliances,Invoice,599.00,1300783,11/02/2015,A038408,London Fire Consultants & Design
North West Leicestershire District Council,31UH,CS,Communications,Corporate - Customer Services,Operational Equipment,Invoice,885.00,1301234,11/02/2015,A000079,Neopost Limited
North West Leicestershire District Council,31UH,PROPCL,Property Services,Property Commercial Lettings,General Repairs,Invoice,584.63,1301267,11/02/2015,A033342,J Tomlinson Ltd
North West Leicestershire District Council,31UH,ENOT,Street Management,Environment Transport,Non Scheduled Maintenance - Parts,Invoice,425.35,1301282,11/02/2015,A000625,Ford & Slater Group Ltd
North West Leicestershire District Council,31UH,ENOT,Street Management,Environment Transport,Repairs - Parts,Invoice,390.84,1301294,11/02/2015,A000906,Kovacs Limited
North West Leicestershire District Council,31UH,ECCTV,Planning & Development,Environment - Town Centre/CCTV,Operational Equipment - Rep & Maint,Invoice,267.45,1301301,11/02/2015,A035493,Quadrant Security Group Limited
North West Leicestershire District Council,31UH,PROPFM,Property Services,Property Facilities Management,General Repairs,Invoice,532.79,1301310,11/02/2015,A033342,J Tomlinson Ltd
North West Leicestershire District Council,31UH,PROPFM,Property Services,Property Facilities Management,General Repairs,Invoice,960.00,1301101,11/02/2015,A036009,Turnkey Design Partnership Limited
North West Leicestershire District Council,31UH,EEHL,Environmental Health,Environmental Health & Licensing,Private & Pool Water Sampling,Invoice,"1,080.48",1301125,11/02/2015,A041891,Valid Consultancy Limited
North West Leicestershire District Council,31UH,ENOT,Street Management,Environment Transport,Good Vehicle Plating,Invoice,559.00,1301249,11/02/2015,A033469,Anderson Commercials Limited
North West Leicestershire District Council,31UH,ENOT,Street Management,Environment Transport,Contract Payments (Other) Ext,Invoice,368.25,1301251,11/02/2015,A032627,Pakawaste Ltd
North West Leicestershire District Council,31UH,ECCTV,Planning & Development,Environment - Town Centre/CCTV,Agency Staff,Invoice,"4,028.99",1301333,11/02/2015,A038132,Premier Security Services (Midlands) Lim
North West Leicestershire District Council,31UH,PROPFM,Property Services,Property Facilities Management,Building Security,Invoice,495.00,1301339,11/02/2015,A013049,Regarde Security Ltd
North West Leicestershire District Council,31UH,ICT,Information Technology,ICT Services,Administrative Equipment,Invoice,937.00,1301405,11/02/2015,A036989,Sec-1
North West Leicestershire District Council,31UH,ECCTV,Planning & Development,Environment - Town Centre/CCTV,General Repairs,Invoice,390.00,1301264,11/02/2015,A001624,Syston Rolling Shutters Ltd
North West Leicestershire District Council,31UH,ECCTV,Planning & Development,Environment - Town Centre/CCTV,Health & Safety Repairs/Maintenance,Invoice,369.48,1301313,11/02/2015,A039911,Fire Proof Ltd
North West Leicestershire District Council,31UH,CDCC,Leisure Centres,Castle Donington Community College,Alternative Fitness Suite,Invoice,522.58,1301314,11/02/2015,A005413,Elliott Group Limited
North West Leicestershire District Council,31UH,HLBC,Leisure Centres,Hermitage Bar & Catering,Bar Provisions,Invoice,399.70,1301315,11/02/2015,A039915,LWC - Birmingham
North West Leicestershire District Council,31UH,PROPFM,Property Services,Property Facilities Management,General Repairs,Invoice,291.60,1301343,11/02/2015,A030887,T Denman & Sons (Melton Mowbray) Ltd
North West Leicestershire District Council,31UH,HLBC,Leisure Centres,Hermitage Bar & Catering,Catering Provisions,Invoice,897.84,1301345,11/02/2015,A001264,Palmer Harvey Mclane Ltd
North West Leicestershire District Council,31UH,ENOT,Street Management,Environment Transport,Gas,Invoice,"1,147.54",1301334,11/02/2015,A032686,Calor Gas Limited
North West Leicestershire District Council,31UH,CP,Communications,Corporate - Communications,Vision - printing and distribution,Invoice,400.00,1301253,11/02/2015,A041895,Hopwood Public Relations
North West Leicestershire District Council,31UH,ECP,Planning & Development,Environment Community Planning,Grants,Invoice,750.00,1301357,11/02/2015,A042016,Martin Gage
North West Leicestershire District Council,31UH,ENOP,Street Management,Environment Parks,Operational Equipment - Purchases,Invoice,666.00,1301389,11/02/2015,A000958,ESPO
North West Leicestershire District Council,31UH,PROPFM,Property Services,Property Facilities Management,General Repairs,Invoice,401.43,1301395,11/02/2015,A033342,J Tomlinson Ltd
North West Leicestershire District Council,31UH,HLC,Leisure Centres,Hermitage Leisure Centre,General Repairs,Invoice,350.00,1301326,11/02/2015,A001644,Television Installation Servi
North West Leicestershire District Council,31UH,ECP,Planning & Development,Environment Community Planning,Shared project funding- NTE officer,Invoice,"2,000.00",1301474,11/02/2015,A000323,Charnwood Borough Council
North West Leicestershire District Council,31UH,ICT,Information Technology,ICT Services,Community Initiatives,Invoice,562.00,1301480,11/02/2015,A025151,Probrand Limited
North West Leicestershire District Council,31UH,ENOT,Street Management,Environment Transport,Repairs - Parts,Invoice,528.09,1301486,11/02/2015,A001540,Spaldings (UK) Limited
North West Leicestershire District Council,31UH,HRAOPS,Housing,HRA Older Persons Service,Transitional Protection,Invoice,485.28,1301499,11/02/2015,A000950,Leicestershire County Council
North West Leicestershire District Council,31UH,HRAPBS,Housing,HRA Performance & Business Support,Agency Staff,Invoice,"1,457.25",1301564,11/02/2015,A041893,Michael Page International Recruitment Ltd
North West Leicestershire District Council,31UH,HPLC,Leisure Centres,Hood Park Leisure Centre,Equipment For Resale,Invoice,259.20,1301094,11/02/2015,A001833,Zoggs International Ltd
North West Leicestershire District Council,31UH,HRAPBS,Housing,HRA Performance & Business Support,Agency Staff,Invoice,"2,872.63",1301565,11/02/2015,A041893,Michael Page International Recruitment Ltd
North West Leicestershire District Council,31UH,HR,Corporate Director,Human Resources,Furniture,Invoice,357.00,1301378,11/02/2015,A000958,ESPO
North West Leicestershire District Council,31UH,HR,Corporate Director,Human Resources,Employee Advertising,Invoice,"1,341.33",1301467,11/02/2015,A001395,Euro RSCG People T/A Havas People Ltd
North West Leicestershire District Council,31UH,HR,Corporate Director,Human Resources,Employee Advertising,Invoice,455.00,1301468,11/02/2015,A040485,Totaljobs Group Ltd
North West Leicestershire District Council,31UH,SPA,Leisure & Culture,Sport & Physical Activity,LSA - SPORTS AWARDS,Invoice,"1,035.00",1301470,11/02/2015,A027592,Chameleon Pro Audio T/A Lux Technical Lt
North West Leicestershire District Council,31UH,HRAHRM,Housing Repairs,HRA Housing Repairs & Maintenance,Protective Clothing,Invoice,935.67,1301494,11/02/2015,A009933,Westbury Industrial Supplies
North West Leicestershire District Council,31UH,FINPLA,Finance,Financial Planning,Computer Development,Invoice,"31,439.11",1301495,11/02/2015,A025004,Total Mobile
North West Leicestershire District Council,31UH,ENOT,Street Management,Environment Transport,Protective Clothing,Invoice,251.40,1301478,11/02/2015,A009933,Westbury Industrial Supplies
North West Leicestershire District Council,31UH,HRAPBS,Housing,HRA Performance & Business Support,Agency Staff,Invoice,"1,035.00",1301566,11/02/2015,A041893,Michael Page International Recruitment Ltd
North West Leicestershire District Council,31UH,ENOWM,Street Management,Environment Waste Management,General Materials,Invoice,"1,634.70",1301573,11/02/2015,A001253,ESE World Limited
North West Leicestershire District Council,31UH,HRAHRM,Housing Repairs,HRA Housing Repairs & Maintenance,Computing,Invoice,"3,800.00",1301257,11/02/2015,A041321,Oneserve Ltd
North West Leicestershire District Council,31UH,HRAHRM,Housing Repairs,HRA Housing Repairs & Maintenance,Computing,Invoice,"2,400.00",1301258,11/02/2015,A041321,Oneserve Ltd
North West Leicestershire District Council,31UH,ENOT,Street Management,Environment Transport,Operational Equipment - Rep & Maint,Invoice,335.75,1301514,11/02/2015,A031644,Stertil UK Ltd
North West Leicestershire District Council,31UH,ENOP,Street Management,Environment Parks,External Materials,Invoice,"1,982.70",1301519,11/02/2015,A034582,Barcham Tree PLC
North West Leicestershire District Council,31UH,HPLC,Leisure Centres,Hood Park Leisure Centre,Service Contracts,Invoice,755.51,1301526,11/02/2015,A000021,ADT Fire And Security
North West Leicestershire District Council,31UH,ICT,Information Technology,ICT Services,Admin Equipment - Maintenance,Invoice,"1,890.00",1301567,11/02/2015,A036989,Sec-1
North West Leicestershire District Council,31UH,HPLC,Leisure Centres,Hood Park Leisure Centre,Electricity,Invoice,"1,633.46",1301527,11/02/2015,A002200,Ivanhoe College
North West Leicestershire District Council,31UH,HPBC,Leisure Centres,Hood Park Bar and Catering,Vending Machine Provisions,Invoice,254.14,1301532,11/02/2015,A000234,Britvic Soft Drinks Limited
North West Leicestershire District Council,31UH,HPBC,Leisure Centres,Hood Park Bar and Catering,Vending Machine Provisions,Invoice,558.86,1301557,11/02/2015,A001264,Palmer Harvey Mclane Ltd
North West Leicestershire District Council,31UH,HPBC,Leisure Centres,Hood Park Bar and Catering,Vending Machine Provisions,Invoice,330.94,1301561,11/02/2015,A001264,Palmer Harvey Mclane Ltd
North West Leicestershire District Council,31UH,HRAPBS,Housing,HRA Performance & Business Support,Consultation,Invoice,"4,500.00",1301401,18/02/2015,A039059,Delib
North West Leicestershire District Council,31UH,ENOT,Street Management,Environment Transport,Training Expenses,Invoice,"1,395.00",1301533,18/02/2015,A027792,Keith Cook Training Services
North West Leicestershire District Council,31UH,ENOP,Street Management,Environment Parks,External Materials,Invoice,263.75,1301700,18/02/2015,A000068,Arco Limited
North West Leicestershire District Council,31UH,PROPFM,Property Services,Property Facilities Management,Door Inspections,Invoice,315.00,1301706,18/02/2015,A023130,Geze Uk Limited
North West Leicestershire District Council,31UH,ECCTV,Planning & Development,Environment - Town Centre/CCTV,Health & Safety Repairs/Maintenance,Invoice,265.00,1301708,18/02/2015,A039911,Fire Proof Ltd
North West Leicestershire District Council,31UH,HRAPBS,Housing,HRA Performance & Business Support,Rent Accounting System,Invoice,"1,035.11",1301712,18/02/2015,A036087,Print Search Chester Limited
North West Leicestershire District Council,31UH,HRAPBS,Housing,HRA Performance & Business Support,Rent Accounting System,Invoice,321.00,1301713,18/02/2015,A036087,Print Search Chester Limited
North West Leicestershire District Council,31UH,ENOT,Street Management,Environment Transport,Transport Costs - Engine Oil,Invoice,365.00,1301730,18/02/2015,A039650,Andrew Page Ltd
North West Leicestershire District Council,31UH,CHEX,Chief Exec,Chief Executive,Interim Support,Invoice,"1,062.00",1301737,18/02/2015,A040743,Janice Milsom
North West Leicestershire District Council,31UH,HRAOPS,Housing,HRA Older Persons Service,Alarm System Telephones,Invoice,"3,840.00",1301738,18/02/2015,A001701,Tunstall Healthcare (UK) Limited
North West Leicestershire District Council,31UH,ENOT,Street Management,Environment Transport,Repairs - Parts,Invoice,"4,042.26",1301741,18/02/2015,A001647,Terberg Matec Uk
North West Leicestershire District Council,31UH,EEHL,Environmental Health,Environmental Health & Licensing,Vet Inspection,Invoice,441.57,1301560,18/02/2015,A033670,Eville And Jones
North West Leicestershire District Council,31UH,SPA,Leisure & Culture,Sport & Physical Activity,Local Sports Alliance,Invoice,294.84,1301515,18/02/2015,A041713,BoogieBods
North West Leicestershire District Council,31UH,HLBC,Leisure Centres,Hermitage Bar & Catering,Catering Provisions,Invoice,435.32,1301793,18/02/2015,A000218,Briers Butchers Ltd
North West Leicestershire District Council,31UH,HPLC,Leisure Centres,Hood Park Leisure Centre,General Repairs,Invoice,469.89,1301798,18/02/2015,A001092,John Merison BMC
North West Leicestershire District Council,31UH,HPLC,Leisure Centres,Hood Park Leisure Centre,Service Contracts,Invoice,287.00,1301799,18/02/2015,A001092,John Merison BMC
North West Leicestershire District Council,31UH,HRAPBS,Housing,HRA Performance & Business Support,Public Transport,Invoice,361.39,1301766,18/02/2015,A040181,ADT
North West Leicestershire District Council,31UH,ESS,Street Management,Environment - Street Scene,Operational Equipment,Invoice,397.60,1301746,18/02/2015,A039764,EPT SERVICES
North West Leicestershire District Council,31UH,PROPCL,Property Services,Property Commercial Lettings,General Repairs,Invoice,685.00,1301758,18/02/2015,A030887,T Denman & Sons (Melton Mowbray) Ltd
North West Leicestershire District Council,31UH,HS,Housing Strategy,Community - Housing Strategy,Other Services,Invoice,436.00,1301770,18/02/2015,A000958,ESPO
North West Leicestershire District Council,31UH,HRAHM,Housing,HRA Housing Management,Furniture,Invoice,585.00,1301775,18/02/2015,A000958,ESPO
North West Leicestershire District Council,31UH,ICT,Information Technology,ICT Services,Consumable Materials,Invoice,407.42,1301783,18/02/2015,A038178,Antalis Limited
North West Leicestershire District Council,31UH,ENOWM,Street Management,Environment Waste Management,General Materials,Invoice,"8,788.00",1301788,18/02/2015,A024906,Straight Plc
North West Leicestershire District Council,31UH,ICT,Information Technology,ICT Services,Administrative Equipment,Invoice,680.00,1301789,18/02/2015,A042045,Computer Relocations Limited
North West Leicestershire District Council,31UH,ENOP,Street Management,Environment Parks,Operational Equipment - Purchases,Invoice,445.00,1301351,18/02/2015,A011490,JB Tool Hire Ltd
North West Leicestershire District Council,31UH,HLC,Leisure Centres,Hermitage Leisure Centre,Service Contracts,Invoice,576.00,1301739,18/02/2015,A000521,Esg Pool Ventilation Ltd
North West Leicestershire District Council,31UH,HRAPBS,Housing,HRA Performance & Business Support,Other Premises Insurance,Invoice,262.50,1301819,18/02/2015,A033807,Zurich Insurance Company
North West Leicestershire District Council,31UH,HR,Corporate Director,Human Resources,Purchases,Invoice,"4,380.00",1301837,18/02/2015,A035521,PES Limited
North West Leicestershire District Council,31UH,SPA,Leisure & Culture,Sport & Physical Activity,Supporting Futures- Street Games,Invoice,312.00,1301841,18/02/2015,A015166,Leicestershire & Rutland Cou
North West Leicestershire District Council,31UH,HPLC,Leisure Centres,Hood Park Leisure Centre,Consumable Cleaning Materials/Hygiene,Invoice,388.58,1301806,18/02/2015,A015996,Admiral Cleaning Supplies Ltd
North West Leicestershire District Council,31UH,HLBC,Leisure Centres,Hermitage Bar & Catering,Bar Provisions,Invoice,464.64,1301810,18/02/2015,A039915,LWC - Birmingham
North West Leicestershire District Council,31UH,HLBC,Leisure Centres,Hermitage Bar & Catering,Catering Provisions,Invoice,364.65,1301811,18/02/2015,A039915,LWC - Birmingham
North West Leicestershire District Council,31UH,HLC,Leisure Centres,Hermitage Leisure Centre,Measham LC Lifestyle DD,Invoice,"2,504.13",1301813,18/02/2015,A027454,Measham Leisure Centre
North West Leicestershire District Council,31UH,HLC,Leisure Centres,Hermitage Leisure Centre,Service Contracts,Invoice,757.80,1301818,18/02/2015,A000021,ADT Fire And Security
North West Leicestershire District Council,31UH,HLBC,Leisure Centres,Hermitage Bar & Catering,Catering Provisions,Invoice,390.89,1301831,18/02/2015,A001264,Palmer Harvey Mclane Ltd
North West Leicestershire District Council,31UH,HLC,Leisure Centres,Hermitage Leisure Centre,Maintenance/Office Expenditure,Invoice,580.98,1301800,18/02/2015,A001092,John Merison BMC
North West Leicestershire District Council,31UH,HLC,Leisure Centres,Hermitage Leisure Centre,General Repairs,Invoice,448.67,1301801,18/02/2015,A001092,John Merison BMC
North West Leicestershire District Council,31UH,HLC,Leisure Centres,Hermitage Leisure Centre,Service Contracts,Invoice,287.00,1301802,18/02/2015,A001092,John Merison BMC
North West Leicestershire District Council,31UH,PROPFM,Property Services,Property Facilities Management,Service Contracts,Invoice,285.50,1301883,18/02/2015,A021932,Calbarrie
North West Leicestershire District Council,31UH,LDLS,Legal & Democratic,Legal Services,Agency Staff,Invoice,649.30,1301893,18/02/2015,A028530,Venn Group Limited
North West Leicestershire District Council,31UH,NACCS,Neighbourhoods & Communities,N & C Community Safety,Early Intervention Project,Invoice,"6,000.00",1301968,18/02/2015,A040188,Personal Development Point
North West Leicestershire District Council,31UH,FINPLA,Finance,Financial Planning,Consultants Fees,Invoice,723.91,1301866,18/02/2015,A034975,SAM Contracting Ltd
North West Leicestershire District Council,31UH,HRAHRM,Housing Repairs,HRA Housing Repairs & Maintenance,Stationery,Invoice,258.06,1301778,18/02/2015,A000958,ESPO
North West Leicestershire District Council,31UH,HS,Housing Strategy,Community - Housing Strategy,Other Services,Invoice,360.00,1301833,18/02/2015,A032364,Pinewood Lodge
North West Leicestershire District Council,31UH,HS,Housing Strategy,Community - Housing Strategy,Other Services,Invoice,560.00,1301834,18/02/2015,A032364,Pinewood Lodge
North West Leicestershire District Council,31UH,ICT,Information Technology,ICT Services,Admin Equipment - Maintenance,Invoice,"1,839.58",1301747,18/02/2015,A032826,Freedom Communications (UK) Ltd
North West Leicestershire District Council,31UH,FINPLA,Finance,Financial Planning,Shared Revs & Bens Partnership costs,Invoice,"18,897.00",1301836,18/02/2015,A000770,Hinckley & Bosworth Boroug
North West Leicestershire District Council,31UH,ECP,Planning & Development,Environment Community Planning,Green Footprints Exp,Invoice,886.00,1301283,25/02/2015,A031850,Broxap Limited
North West Leicestershire District Council,31UH,ENOT,Street Management,Environment Transport,Scheduled Servicing - Parts,Invoice,537.30,1301743,25/02/2015,A000625,Ford & Slater Group Ltd
North West Leicestershire District Council,31UH,ESS,Street Management,Environment - Street Scene,Operational Equipment,Invoice,576.94,1301786,25/02/2015,A028996,Metric Group Ltd (Sales)
North West Leicestershire District Council,31UH,CP,Communications,Corporate - Communications,Expenditure against earmarked reserve,Invoice,"1,480.00",1301787,25/02/2015,A042020,Cambridge Marketing College
North West Leicestershire District Council,31UH,ENOT,Street Management,Environment Transport,Non Scheduled Maintenance - Parts,Invoice,332.14,1301844,25/02/2015,A001647,Terberg Matec Uk
North West Leicestershire District Council,31UH,ENOP,Street Management,Environment Parks,Operational Equipment - Purchases,Invoice,"1,104.53",1302061,25/02/2015,A001789,Wicksteed Leisure Limited
North West Leicestershire District Council,31UH,ENOT,Street Management,Environment Transport,General Materials,Invoice,"5,010.00",1302063,25/02/2015,A029076,SAUNDERS OF STAPLETON LTD
North West Leicestershire District Council,31UH,ICT,Information Technology,ICT Services,Admin Equipment - Maintenance,Invoice,"2,700.00",1302068,25/02/2015,A000470,Dell Computer Corporation L
North West Leicestershire District Council,31UH,ENOT,Street Management,Environment Transport,Repairs - Parts,Invoice,451.68,1302078,25/02/2015,A000625,Ford & Slater Group Ltd
North West Leicestershire District Council,31UH,ENOP,Street Management,Environment Parks,Operational Equipment - Purchases,Invoice,"1,613.90",1302084,25/02/2015,A038742,Secure-a-field
North West Leicestershire District Council,31UH,ENOT,Street Management,Environment Transport,Fuel,Invoice,"13,844.39",1302086,25/02/2015,A040946,Hall Fuels (Division of Watson Petroleum
North West Leicestershire District Council,31UH,HS,Housing Strategy,Community - Housing Strategy,Other Services,Invoice,320.00,1302096,25/02/2015,A032364,Pinewood Lodge
North West Leicestershire District Council,31UH,HS,Housing Strategy,Community - Housing Strategy,Other Services,Invoice,560.00,1302097,25/02/2015,A032364,Pinewood Lodge
North West Leicestershire District Council,31UH,ENOT,Street Management,Environment Transport,Non Insurance Damage,Invoice,737.09,1302101,25/02/2015,A001647,Terberg Matec Uk
North West Leicestershire District Council,31UH,ENOT,Street Management,Environment Transport,Operational Equipment,Invoice,"1,730.00",1302103,25/02/2015,A032890,DR Baling Wire Manufacturers Ltd
North West Leicestershire District Council,31UH,HS,Housing Strategy,Community - Housing Strategy,Other Services,Invoice,320.00,1302095,25/02/2015,A032364,Pinewood Lodge
North West Leicestershire District Council,31UH,PROPCL,Property Services,Property Commercial Lettings,General Repairs,Invoice,360.00,1302115,25/02/2015,A000370,Coalville Signs
North West Leicestershire District Council,31UH,CS,Communications,Corporate - Customer Services,Operational Equipment,Invoice,296.99,1302121,25/02/2015,A000079,Neopost Limited
North West Leicestershire District Council,31UH,HRAPBS,Housing,HRA Performance & Business Support,Tenants Scrutiny Panel,Invoice,370.00,1302127,25/02/2015,A030740,Priority Estates Project Limited
North West Leicestershire District Council,31UH,HRAPBS,Housing,HRA Performance & Business Support,Agency Staff,Invoice,"4,500.00",1302151,25/02/2015,A041893,Michael Page International Recruitment Ltd
North West Leicestershire District Council,31UH,ENOT,Street Management,Environment Transport,Non Scheduled Maintenance - Parts,Invoice,774.13,1302175,25/02/2015,A039355,Johnston Sweepers Ltd
North West Leicestershire District Council,31UH,PROPFM,Property Services,Property Facilities Management,PAT Testing,Invoice,"2,670.50",1302132,25/02/2015,A021932,Calbarrie
North West Leicestershire District Council,31UH,EEHL,Environmental Health,Environmental Health & Licensing,Hackney Carriage - Plates & Badges,Invoice,258.90,1302080,25/02/2015,A034761,NewAuto Ltd T/A Mogo UK
North West Leicestershire District Council,31UH,LDLS,Legal & Democratic,Legal Services,Agency Staff,Invoice,617.88,1302114,25/02/2015,A028530,Venn Group Limited
North West Leicestershire District Council,31UH,ENOT,Street Management,Environment Transport,Repairs - Parts,Invoice,"2,413.67",1302182,25/02/2015,A001647,Terberg Matec Uk
North West Leicestershire District Council,31UH,ENOT,Street Management,Environment Transport,Repairs - Parts,Invoice,"2,716.08",1302207,25/02/2015,A032114,Watling JCB Ltd
North West Leicestershire District Council,31UH,NACCS,Neighbourhoods & Communities,N & C Community Safety,Early Intervention Project,Invoice,"6,000.00",1302255,25/02/2015,A040188,Personal Development Point
North West Leicestershire District Council,31UH,ENOP,Street Management,Environment Parks,Operational Equipment - Purchases,Invoice,423.65,1302194,25/02/2015,A034267,Landmark Trading (Stamford) Limited
North West Leicestershire District Council,31UH,ICT,Information Technology,ICT Services,Administrative Equipment,Invoice,285.00,1302122,25/02/2015,A036738,Viglen Limited
North West Leicestershire District Council,31UH,PROPFM,Property Services,Property Facilities Management,Contract Payments (Dws) Ext,Invoice,"12,789.60",1302178,25/02/2015,A001092,John Merison BMC
North West Leicestershire District Council,31UH,ENOT,Street Management,Environment Transport,Repairs - Parts,Invoice,635.84,1301725,25/02/2015,A039355,Johnston Sweepers Ltd
North West Leicestershire District Council,31UH,ENOP,Street Management,Environment Parks,Operational Equipment - Purchases,Invoice,414.62,1302208,25/02/2015,A001540,Spaldings (UK) Limited
North West Leicestershire District Council,31UH,ENOP,Street Management,Environment Parks,Operational Equipment - Purchases,Invoice,752.24,1302193,25/02/2015,A034267,Landmark Trading (Stamford) Limited
North West Leicestershire District Council,31UH,FINPLA,Finance,Financial Planning,Interim Support,Invoice,537.50,1302227,25/02/2015,A034975,SAM Contracting Ltd
North West Leicestershire District Council,31UH,PROPFM,Property Services,Property Facilities Management,General Repairs,Invoice,"4,718.52",1302230,25/02/2015,A030887,T Denman & Sons (Melton Mowbray) Ltd
North West Leicestershire District Council,31UH,PROPCL,Property Services,Property Commercial Lettings,General Repairs,Invoice,609.21,1302231,25/02/2015,A001092,John Merison BMC
North West Leicestershire District Council,31UH,PROPCL,Property Services,Property Commercial Lettings,General Repairs,Invoice,367.66,1302232,25/02/2015,A001092,John Merison BMC
North West Leicestershire District Council,31UH,ENOT,Street Management,Environment Transport,Books & Publications,Invoice,260.00,1302252,25/02/2015,A027981,Freight Transport Association
North West Leicestershire District Council,31UH,PROPCL,Property Services,Property Commercial Lettings,General Repairs,Invoice,433.63,1302253,25/02/2015,A001092,John Merison BMC
North West Leicestershire District Council,31UH,ENOT,Street Management,Environment Transport,Gas,Invoice,"1,075.90",1302209,25/02/2015,A032686,Calor Gas Limited
North West Leicestershire District Council,31UH,ENOT,Street Management,Environment Transport,Hire Of Operational Equipment,Invoice,250.00,1302210,25/02/2015,A000991,J F Lloyd & Sons
North West Leicestershire District Council,31UH,PROPCL,Property Services,Property Commercial Lettings,Contract Cleaning,Invoice,531.49,1302225,25/02/2015,A003037,Coalville Cleaning Services
North West Leicestershire District Council,31UH,PROPCL,Property Services,Property Commercial Lettings,Contract Cleaning,Invoice,276.14,1302226,25/02/2015,A003037,Coalville Cleaning Services
North West Leicestershire District Council,31UH,HRAHRM,Housing Repairs,HRA Housing Repairs & Maintenance,Solid Fuel Supplies,Invoice,"2,468.00",1300846,04/02/2015,A035675,Elite Sweep Service
North West Leicestershire District Council,31UH,HRAHRM,Housing Repairs,HRA Housing Repairs & Maintenance,Gas Servicing,Invoice,"2,687.15",1300913,04/02/2015,A033342,J Tomlinson Ltd
North West Leicestershire District Council,31UH,HRAHRM,Housing Repairs,HRA Housing Repairs & Maintenance,Housing Repairs,Invoice,334.30,1301075,04/02/2015,A031787,Laker BMS Ltd
North West Leicestershire District Council,31UH,HRAHRM,Housing Repairs,HRA Housing Repairs & Maintenance,Housing Repairs,Invoice,908.29,1301065,04/02/2015,A031787,Laker BMS Ltd
North West Leicestershire District Council,31UH,HRAHRM,Housing Repairs,HRA Housing Repairs & Maintenance,Plumbing & Heating,Invoice,"2,045.72",1301055,04/02/2015,A000950,Leicestershire County Council
North West Leicestershire District Council,31UH,HRAHRM,Housing Repairs,HRA Housing Repairs & Maintenance,Window Repair and Maintenance,Invoice,549.16,1301058,04/02/2015,A036741,SBP Limited (Trading as Plastal & Permad
North West Leicestershire District Council,31UH,HRAHRM,Housing Repairs,HRA Housing Repairs & Maintenance,Place Based Envirnmental Improvements,Invoice,"4,350.00",1301061,04/02/2015,A041348,Onsite Specialist Maintenance Ltd
North West Leicestershire District Council,31UH,HRAHRM,Housing Repairs,HRA Housing Repairs & Maintenance,Solid Fuel Supplies,Invoice,305.80,1301415,11/02/2015,A035675,Elite Sweep Service
North West Leicestershire District Council,31UH,HRAHRM,Housing Repairs,HRA Housing Repairs & Maintenance,Housing Repairs,Invoice,575.00,1301441,11/02/2015,A031787,Laker BMS Ltd
North West Leicestershire District Council,31UH,HRAHRM,Housing Repairs,HRA Housing Repairs & Maintenance,Housing Repairs,Invoice,"2,800.00",1301437,11/02/2015,A031787,Laker BMS Ltd
North West Leicestershire District Council,31UH,HRAHRM,Housing Repairs,HRA Housing Repairs & Maintenance,Housing Repairs,Invoice,"5,520.76",1301438,11/02/2015,A031787,Laker BMS Ltd
North West Leicestershire District Council,31UH,HRAHRM,Housing Repairs,HRA Housing Repairs & Maintenance,Housing Repairs,Invoice,403.51,1301427,11/02/2015,A031787,Laker BMS Ltd
North West Leicestershire District Council,31UH,HRAHRM,Housing Repairs,HRA Housing Repairs & Maintenance,Housing Repairs,Invoice,"3,265.75",1301428,11/02/2015,A031787,Laker BMS Ltd
North West Leicestershire District Council,31UH,HRAHRM,Housing Repairs,HRA Housing Repairs & Maintenance,Housing Repairs,Invoice,691.49,1301447,11/02/2015,A031787,Laker BMS Ltd
North West Leicestershire District Council,31UH,HRAHRM,Housing Repairs,HRA Housing Repairs & Maintenance,Housing Repairs,Invoice,"1,581.25",1301449,11/02/2015,A031787,Laker BMS Ltd
North West Leicestershire District Council,31UH,HRAHRM,Housing Repairs,HRA Housing Repairs & Maintenance,Housing Repairs,Invoice,339.22,1301451,11/02/2015,A031787,Laker BMS Ltd
North West Leicestershire District Council,31UH,HRAHRM,Housing Repairs,HRA Housing Repairs & Maintenance,Housing Repairs,Invoice,930.29,1301452,11/02/2015,A031787,Laker BMS Ltd
North West Leicestershire District Council,31UH,HRAHRM,Housing Repairs,HRA Housing Repairs & Maintenance,Housing Repairs,Invoice,"1,072.20",1301442,11/02/2015,A031787,Laker BMS Ltd
North West Leicestershire District Council,31UH,HRAHRM,Housing Repairs,HRA Housing Repairs & Maintenance,Housing Repairs,Invoice,305.13,1301443,11/02/2015,A031787,Laker BMS Ltd
North West Leicestershire District Council,31UH,HRAHRM,Housing Repairs,HRA Housing Repairs & Maintenance,Housing Repairs,Invoice,372.81,1301444,11/02/2015,A031787,Laker BMS Ltd
North West Leicestershire District Council,31UH,HRAHRM,Housing Repairs,HRA Housing Repairs & Maintenance,Housing Repairs,Invoice,283.66,1301456,11/02/2015,A031787,Laker BMS Ltd
North West Leicestershire District Council,31UH,HRAHRM,Housing Repairs,HRA Housing Repairs & Maintenance,Housing Repairs,Invoice,515.10,1301457,11/02/2015,A031787,Laker BMS Ltd
North West Leicestershire District Council,31UH,HRAHRM,Housing Repairs,HRA Housing Repairs & Maintenance,Housing Repairs,Invoice,336.00,1301458,11/02/2015,A031787,Laker BMS Ltd
North West Leicestershire District Council,31UH,HRAHRM,Housing Repairs,HRA Housing Repairs & Maintenance,Housing Repairs,Invoice,588.66,1301460,11/02/2015,A031787,Laker BMS Ltd
North West Leicestershire District Council,31UH,HRAHRM,Housing Repairs,HRA Housing Repairs & Maintenance,Housing Repairs,Invoice,"1,056.77",1301465,11/02/2015,A031787,Laker BMS Ltd
North West Leicestershire District Council,31UH,HRAHRM,Housing Repairs,HRA Housing Repairs & Maintenance,Place Based Envirnmental Improvements,Invoice,"4,350.00",1301943,18/02/2015,A041348,Onsite Specialist Maintenance Ltd
North West Leicestershire District Council,31UH,HRAHRM,Housing Repairs,HRA Housing Repairs & Maintenance,Place Based Envirnmental Improvements,Invoice,"4,350.00",1301944,18/02/2015,A041348,Onsite Specialist Maintenance Ltd
North West Leicestershire District Council,31UH,HRAHRM,Housing Repairs,HRA Housing Repairs & Maintenance,Asbestos Survey and Removal,Invoice,900.00,1301945,18/02/2015,A041868,Aspect Contracts Limited
North West Leicestershire District Council,31UH,HRAHRM,Housing Repairs,HRA Housing Repairs & Maintenance,Contract Payments (Dws) Ext,Invoice,451.33,1301950,18/02/2015,A026237,British Gas Trading Limited
North West Leicestershire District Council,31UH,HRAHRM,Housing Repairs,HRA Housing Repairs & Maintenance,Supply and fit of Doors,Invoice,288.67,1301951,18/02/2015,A038041,I G Doors Limited
North West Leicestershire District Council,31UH,HRAHRM,Housing Repairs,HRA Housing Repairs & Maintenance,Housing Repairs,Invoice,"3,031.45",1301466,11/02/2015,A031787,Laker BMS Ltd
North West Leicestershire District Council,31UH,HRAHRM,Housing Repairs,HRA Housing Repairs & Maintenance,Housing Repairs,Invoice,336.00,1301445,11/02/2015,A031787,Laker BMS Ltd
North West Leicestershire District Council,31UH,HRAHRM,Housing Repairs,HRA Housing Repairs & Maintenance,Door Entry Systems,Invoice,300.00,1301920,18/02/2015,A023130,Geze Uk Limited
North West Leicestershire District Council,31UH,HRAHRM,Housing Repairs,HRA Housing Repairs & Maintenance,Door Entry Systems,Invoice,"1,811.05",1301921,18/02/2015,A023130,Geze Uk Limited
North West Leicestershire District Council,31UH,HRAHRM,Housing Repairs,HRA Housing Repairs & Maintenance,Door Entry Systems,Invoice,329.40,1301923,18/02/2015,A028261,TECSERV UK LIMITED
North West Leicestershire District Council,31UH,HRAHRM,Housing Repairs,HRA Housing Repairs & Maintenance,Door Entry Systems,Invoice,319.00,1301924,18/02/2015,A028261,TECSERV UK LIMITED
North West Leicestershire District Council,31UH,HRAHRM,Housing Repairs,HRA Housing Repairs & Maintenance,Window Repair and Maintenance,Invoice,"1,723.76",1301930,18/02/2015,A036741,SBP Limited (Trading as Plastal & Permad
North West Leicestershire District Council,31UH,HRAHRM,Housing Repairs,HRA Housing Repairs & Maintenance,Supply and fit of Doors,Invoice,360.36,1301939,18/02/2015,A038041,I G Doors Limited
North West Leicestershire District Council,31UH,HRAHRM,Housing Repairs,HRA Housing Repairs & Maintenance,Supply and fit of Doors,Invoice,397.08,1301940,18/02/2015,A038041,I G Doors Limited
North West Leicestershire District Council,31UH,HRAHRM,Housing Repairs,HRA Housing Repairs & Maintenance,Housing Repairs,Invoice,311.65,1302550,25/02/2015,A031787,Laker BMS Ltd
North West Leicestershire District Council,31UH,HRAHRM,Housing Repairs,HRA Housing Repairs & Maintenance,Housing Repairs,Invoice,"2,369.81",1302565,25/02/2015,A031787,Laker BMS Ltd
North West Leicestershire District Council,31UH,HRAHRM,Housing Repairs,HRA Housing Repairs & Maintenance,Housing Repairs,Invoice,348.68,1302567,25/02/2015,A031787,Laker BMS Ltd
North West Leicestershire District Council,31UH,HRAHRM,Housing Repairs,HRA Housing Repairs & Maintenance,Housing Repairs,Invoice,870.69,1302568,25/02/2015,A031787,Laker BMS Ltd
North West Leicestershire District Council,31UH,HRAHRM,Housing Repairs,HRA Housing Repairs & Maintenance,Housing Repairs,Invoice,"1,400.00",1302569,25/02/2015,A031787,Laker BMS Ltd
North West Leicestershire District Council,31UH,HRAHRM,Housing Repairs,HRA Housing Repairs & Maintenance,Housing Repairs,Invoice,334.85,1302570,25/02/2015,A031787,Laker BMS Ltd
North West Leicestershire District Council,31UH,HRAHRM,Housing Repairs,HRA Housing Repairs & Maintenance,Housing Repairs,Invoice,"1,630.14",1302571,25/02/2015,A031787,Laker BMS Ltd
North West Leicestershire District Council,31UH,HRAHRM,Housing Repairs,HRA Housing Repairs & Maintenance,Housing Repairs,Invoice,"7,817.94",1302572,25/02/2015,A031787,Laker BMS Ltd
North West Leicestershire District Council,31UH,HRAHRM,Housing Repairs,HRA Housing Repairs & Maintenance,Housing Repairs,Invoice,"8,241.97",1302552,25/02/2015,A031787,Laker BMS Ltd
North West Leicestershire District Council,31UH,HRAHRM,Housing Repairs,HRA Housing Repairs & Maintenance,Housing Repairs,Invoice,622.06,1302553,25/02/2015,A031787,Laker BMS Ltd
North West Leicestershire District Council,31UH,HRAHRM,Housing Repairs,HRA Housing Repairs & Maintenance,Place Based Environmental Improvements,Invoice,"1,403.00",1302556,25/02/2015,A031787,Laker BMS Ltd
North West Leicestershire District Council,31UH,HRAHRM,Housing Repairs,HRA Housing Repairs & Maintenance,Housing Repairs,Invoice,944.86,1302561,25/02/2015,A031787,Laker BMS Ltd
North West Leicestershire District Council,31UH,HRAHRM,Housing Repairs,HRA Housing Repairs & Maintenance,Contract Payments (Dws) Ext,Invoice,687.70,1302562,25/02/2015,A031787,Laker BMS Ltd
North West Leicestershire District Council,31UH,HRAHRM,Housing Repairs,HRA Housing Repairs & Maintenance,Housing Repairs,Invoice,"2,370.16",1302563,25/02/2015,A031787,Laker BMS Ltd
North West Leicestershire District Council,31UH,HRAHRM,Housing Repairs,HRA Housing Repairs & Maintenance,Housing Repairs,Invoice,"2,800.00",1302564,25/02/2015,A031787,Laker BMS Ltd
North West Leicestershire District Council,31UH,EXCH,Finance,Exchequer Services,Agency Staff,Invoice,"9,910.79",1300694,04/02/2015,A036958,Comensura Limited
North West Leicestershire District Council,31UH,LDLS,Legal & Democratic,Legal Services,Computing,Invoice,981.35,1300755,04/02/2015,A037595,Thomson Reuters (Professional) UK Limite
North West Leicestershire District Council,31UH,HRAHM,Housing,HRA Housing Management,Contract Cleaning,Invoice,"1,440.20",1300766,04/02/2015,A000950,Leicestershire County Council
North West Leicestershire District Council,31UH,EEHL,Environmental Health,Environmental Health & Licensing,Grants,Invoice,"4,322.07",1300771,04/02/2015,A038668,Adaptions
North West Leicestershire District Council,31UH,HRAHM,Housing,HRA Housing Management,Licences,Invoice,420.00,1300800,04/02/2015,A032953,M3 Housing Limited
North West Leicestershire District Council,31UH,EEHL,Environmental Health,Environmental Health & Licensing,Grants,Invoice,"8,000.00",1300773,04/02/2015,A041584,ADN Construction Ltd
North West Leicestershire District Council,31UH,EEHL,Environmental Health,Environmental Health & Licensing,Grants,Invoice,"2,968.28",1300772,04/02/2015,A001092,John Merison BMC
North West Leicestershire District Council,31UH,CULTEV,Leisure & Culture,Cultural Services Arts & Events,Theatre Tickets,Invoice,270.00,1300715,04/02/2015,A027431,Ashby Dramatic Society
North West Leicestershire District Council,31UH,ICT,Information Technology,ICT Services,Expenditure against earmarked reserve,Credit Note,305.28,1300711,11/02/2015,A025151,Probrand Limited
North West Leicestershire District Council,31UH,ENOP,Street Management,Environment Parks,Electricity,Invoice,387.86,1300707,04/02/2015,A035181,British Gas Business
North West Leicestershire District Council,31UH,HRAPBS,Housing,HRA Performance & Business Support,Computing,Credit Note,950.00,1300706,11/02/2015,A041321,Oneserve Ltd
North West Leicestershire District Council,31UH,ENOP,Street Management,Environment Parks,Electricity,Invoice,364.16,1300700,04/02/2015,A035181,British Gas Business
North West Leicestershire District Council,31UH,FINPLA,Finance,Financial Planning,Interim Support,Invoice,537.50,1301231,04/02/2015,A034975,SAM Contracting Ltd
North West Leicestershire District Council,31UH,ICT,Information Technology,ICT Services,Expenditure against earmarked reserve,Credit Note,305.28,1301233,11/02/2015,A025151,Probrand Limited
North West Leicestershire District Council,31UH,HRAHM,Housing,HRA Housing Management,Miscellaneous,Invoice,526.00,1301236,04/02/2015,A039091,Energico
North West Leicestershire District Council,31UH,EXCH,Finance,Exchequer Services,Contributions From Other Councils,Invoice,"1,186.00",1300695,04/02/2015,A042062,Leicestershire Fire & Rescue Service
North West Leicestershire District Council,31UH,EES,Environmental Health,Environmental Services,Electricity,Invoice,"2,136.67",1300811,04/02/2015,A000528,E.on
North West Leicestershire District Council,31UH,FINPLA,Finance,Financial Planning,Transport - Operating Leases,Invoice,"13,081.85",1301105,04/02/2015,A030097,SG Equipment Finance Limited
North West Leicestershire District Council,31UH,EPP,Planning & Development,Environment Planning Policy,Sence Valley,Invoice,"3,015.00",1301110,04/02/2015,A038616,Hugglescote & Donington Le Heath
North West Leicestershire District Council,31UH,EXCH,Finance,Exchequer Services,Gas,Invoice,"6,398.20",1301239,04/02/2015,A000958,ESPO
North West Leicestershire District Council,31UH,EXCH,Finance,Exchequer Services,Gas,Invoice,"17,970.29",1301240,04/02/2015,A035709,Corona Energy Retail 4 Ltd
North West Leicestershire District Council,31UH,FINPLA,Finance,Financial Planning,Capital Rec'S Set Aside,Invoice,"171,360.88",1301244,04/02/2015,A028518,Department for Communities & Local Gover
North West Leicestershire District Council,31UH,HRAHM,Housing,HRA Housing Management,Legal & Professional Services,Invoice,435.00,1301286,11/02/2015,A009242,Experian Ltd
North West Leicestershire District Council,31UH,HLC,Leisure Centres,Hermitage Leisure Centre,Operational Equipment,Invoice,350.00,1301332,11/02/2015,A036694,Matt Ward
North West Leicestershire District Council,31UH,PROPCL,Property Services,Property Commercial Lettings,Telephones,Invoice,613.61,1301344,11/02/2015,A000233,British Telecommunications P
North West Leicestershire District Council,31UH,EXCH,Finance,Exchequer Services,Agency Staff,Invoice,"10,667.00",1301259,11/02/2015,A036958,Comensura Limited
North West Leicestershire District Council,31UH,HRAHM,Housing,HRA Housing Management,Contract Cleaning,Invoice,"5,135.67",1301265,11/02/2015,A000950,Leicestershire County Council
North West Leicestershire District Council,31UH,EEHL,Environmental Health,Environmental Health & Licensing,Grants,Invoice,"5,745.00",1301271,11/02/2015,A038469,Leicestershire County Council
North West Leicestershire District Council,31UH,CULTYP,Leisure & Culture,Cultural Services Children & YoungPeople,Extended Services,Invoice,833.33,1301278,11/02/2015,A039092,The Mighty Creatives
North West Leicestershire District Council,31UH,LDLS,Legal & Democratic,Legal Services,External Legal Fees & Advice,Invoice,"1,059.50",1301279,11/02/2015,A041538,Shakespeares
North West Leicestershire District Council,31UH,PROPCL,Property Services,Property Commercial Lettings,Service Charge,Invoice,287.50,1301280,11/02/2015,A039947,Leicestershire County Council
North West Leicestershire District Council,31UH,ICT,Information Technology,ICT Services,Operational Equipment,Invoice,303.24,1301118,04/02/2015,A018592,Orange Plc
North West Leicestershire District Council,31UH,PROPFM,Property Services,Property Facilities Management,Electricity,Invoice,"4,398.87",1301490,11/02/2015,A030266,Southern Electric
North West Leicestershire District Council,31UH,HRAHM,Housing,HRA Housing Management,Electricity,Invoice,404.33,1301491,11/02/2015,A038620,EDF Energy Customers Plc
North West Leicestershire District Council,31UH,HRAHM,Housing,HRA Housing Management,Contract Cleaning,Invoice,"1,982.61",1301492,11/02/2015,A000950,Leicestershire County Council
North West Leicestershire District Council,31UH,FINPLA,Finance,Financial Planning,Equipment Operating Leases,Invoice,"1,798.00",1301505,11/02/2015,A033672,Santander Asset Finance PLC
North West Leicestershire District Council,31UH,EXCH,Finance,Exchequer Services,Collection - Cash,Invoice,"1,120.31",1301507,11/02/2015,A004468,Kings Armoured Security Ser
North West Leicestershire District Council,31UH,HRAHRM,Housing Repairs,HRA Housing Repairs & Maintenance,Tipping Charges,Invoice,276.45,1301508,11/02/2015,A035471,Ward Recycling
North West Leicestershire District Council,31UH,HRAHRM,Housing Repairs,HRA Housing Repairs & Maintenance,Tipping Charges,Invoice,496.85,1301509,11/02/2015,A035471,Ward Recycling
North West Leicestershire District Council,31UH,EXCH,Finance,Exchequer Services,Payroll Services,Invoice,"2,292.05",1301124,04/02/2015,A010859,Selima Limited
North West Leicestershire District Council,31UH,HRAHRM,Housing Repairs,HRA Housing Repairs & Maintenance,Decent Homes,Invoice,"462,299.27",1301299,11/02/2015,A039973,Lovell Partnerships Ltd
North West Leicestershire District Council,31UH,HRAHRM,Housing Repairs,HRA Housing Repairs & Maintenance,Contract Payments (Dws) Ext,Invoice,"41,069.37",1301300,11/02/2015,A039980,Kier Services Maintenance East Ltd
North West Leicestershire District Council,31UH,HR,Corporate Director,Human Resources,Items To Be Leased,Invoice,"4,087.53",1301511,11/02/2015,A042080,Automotive Leasing
North West Leicestershire District Council,31UH,EES,Environmental Health,Environmental Services,Welfare Funerals,Invoice,"1,120.00",1301350,11/02/2015,A023141,The Co-operative Funeralcare
North West Leicestershire District Council,31UH,LDLS,Legal & Democratic,Legal Services,Legal Services- Business Development,Invoice,250.00,1301356,11/02/2015,A004729,LGG
North West Leicestershire District Council,31UH,EES,Environmental Health,Environmental Services,Water Charges (Metered),Invoice,622.34,1301362,11/02/2015,A001468,Severn Trent Water Limited
North West Leicestershire District Council,31UH,ENOP,Street Management,Environment Parks,Water Charges (Metered),Invoice,356.32,1301363,11/02/2015,A001468,Severn Trent Water Limited
North West Leicestershire District Council,31UH,EEHL,Environmental Health,Environmental Health & Licensing,Grants,Invoice,"18,671.36",1301709,18/02/2015,A027781,J Rennocks & Son Ltd
North West Leicestershire District Council,31UH,EEHL,Environmental Health,Environmental Health & Licensing,Grants,Invoice,"4,125.73",1301710,18/02/2015,A027561,MJM Plumbing & Heating Services (Midland
North West Leicestershire District Council,31UH,EEHL,Environmental Health,Environmental Health & Licensing,Grants,Invoice,"3,700.66",1301711,18/02/2015,A001092,John Merison BMC
North West Leicestershire District Council,31UH,ICT,Information Technology,ICT Services,Telephone Charge / Rental,Invoice,"5,655.13",1301552,11/02/2015,A008908,Virgin Media Business
North West Leicestershire District Council,31UH,ICT,Information Technology,ICT Services,Computing,Invoice,291.66,1301554,11/02/2015,A035373,Virgin Media Business
North West Leicestershire District Council,31UH,ENOT,Street Management,Environment Transport,Operational Equipment - Purchases,Invoice,396.42,1301555,11/02/2015,A000193,Boc Limited
North West Leicestershire District Council,31UH,HRAHM,Housing,HRA Housing Management,Tenants Scrutiny Panel,Invoice,379.15,1301768,18/02/2015,A040679,Mrs J Higgins
North West Leicestershire District Council,31UH,HRAHM,Housing,HRA Housing Management,Contract Payments (Dws) Ext,Invoice,888.00,1301821,18/02/2015,A022373,Cresswell Property Surveys
North West Leicestershire District Council,31UH,HRAHRM,Housing Repairs,HRA Housing Repairs & Maintenance,Consultants Fees,Invoice,500.00,1301822,18/02/2015,A036053,Cope Safety Management Limited
North West Leicestershire District Council,31UH,HRAHRM,Housing Repairs,HRA Housing Repairs & Maintenance,Consultants Fees,Invoice,250.00,1301823,18/02/2015,A036053,Cope Safety Management Limited
North West Leicestershire District Council,31UH,HRAHRM,Housing Repairs,HRA Housing Repairs & Maintenance,Consultants Fees,Invoice,250.00,1301824,18/02/2015,A036053,Cope Safety Management Limited
North West Leicestershire District Council,31UH,HRAHRM,Housing Repairs,HRA Housing Repairs & Maintenance,Consultants Fees,Invoice,500.00,1301825,18/02/2015,A036053,Cope Safety Management Limited
North West Leicestershire District Council,31UH,HRAHM,Housing,HRA Housing Management,Whitwick,Invoice,"2,685.71",1301849,18/02/2015,A000950,Leicestershire County Council
North West Leicestershire District Council,31UH,ECP,Planning & Development,Environment Community Planning,External Legal Fees & Advice,Invoice,300.00,1301851,18/02/2015,A041934,The Environmental Consultancy - re CGMS
North West Leicestershire District Council,31UH,ECP,Planning & Development,Environment Community Planning,Tree Officer,Invoice,"1,372.92",1301852,18/02/2015,A000770,Hinckley & Bosworth Boroug
North West Leicestershire District Council,31UH,EEHL,Environmental Health,Environmental Health & Licensing,Grants,Invoice,"1,633.50",1301751,18/02/2015,A038469,Leicestershire County Council
North West Leicestershire District Council,31UH,EES,Environmental Health,Environmental Services,Grants,Invoice,"3,925.00",1301581,11/02/2015,A038469,Leicestershire County Council
North West Leicestershire District Council,31UH,ENOT,Street Management,Environment Transport,Licences - Road Fund Licence,Invoice,"1,230.00",1301582,11/02/2015,A008559,Post Office Limited
North West Leicestershire District Council,31UH,FINPLA,Finance,Financial Planning,Measham,Invoice,360.00,1301690,11/02/2015,A001835,Zurich Municipal
North West Leicestershire District Council,31UH,CS,Communications,Corporate - Customer Services,Postages,Invoice,"4,000.00",1301691,11/02/2015,A000079,Neopost Limited
North West Leicestershire District Council,31UH,LDLS,Legal & Democratic,Legal Services,Legal & Professional Services,Invoice,683.00,1301719,18/02/2015,A000251,Browne Jacobson
North West Leicestershire District Council,31UH,EXCH,Finance,Exchequer Services,Agency Staff,Invoice,"16,070.31",1301733,18/02/2015,A036958,Comensura Limited
North West Leicestershire District Council,31UH,HRAHM,Housing,HRA Housing Management,Contract Cleaning,Invoice,"5,182.51",1301735,18/02/2015,A000950,Leicestershire County Council
North West Leicestershire District Council,31UH,HS,Housing Strategy,Community - Housing Strategy,Legal & Professional Services,Invoice,"1,400.00",1301742,18/02/2015,A007983,HQN Ltd
North West Leicestershire District Council,31UH,HRAHRM,Housing Repairs,HRA Housing Repairs & Maintenance,General Materials,Invoice,"59,799.03",1301954,17/02/2015,A036453,Collective Enterprises Ltd
North West Leicestershire District Council,31UH,ICT,Information Technology,ICT Services,Equipment Operating Leases,Invoice,268.81,1301857,18/02/2015,A040459,Canon UK Ltd
North West Leicestershire District Council,31UH,ICT,Information Technology,ICT Services,Equipment Operating Leases,Invoice,268.81,1301858,18/02/2015,A040459,Canon UK Ltd
North West Leicestershire District Council,31UH,ICT,Information Technology,ICT Services,Equipment Operating Leases,Invoice,268.81,1301859,18/02/2015,A040459,Canon UK Ltd
North West Leicestershire District Council,31UH,CULTYP,Leisure & Culture,Cultural Services Children & YoungPeople,Community Initiatives,Invoice,"10,000.00",1302058,18/02/2015,A033968,Whitwick Community Coffee Shop
North West Leicestershire District Council,31UH,ICT,Information Technology,ICT Services,Expenditure against earmarked reserve,Invoice,305.28,1301905,18/02/2015,A025151,Probrand Limited
North West Leicestershire District Council,31UH,EXCH,Finance,Exchequer Services,Precept,Invoice,"228,981.00",1301957,17/02/2015,A028339,"Leicester, Leicestershire & Rutland Combined Fire Authority"
North West Leicestershire District Council,31UH,HR,Corporate Director,Human Resources,Criminal Records Bureau,Invoice,844.00,1301958,17/02/2015,A027625,The Disclosure & Barring Service
North West Leicestershire District Council,31UH,EXCH,Finance,Exchequer Services,Precept,Invoice,"524,721.60",1301963,17/02/2015,A007096,The OPCC for Leicestershire
North West Leicestershire District Council,31UH,HRAHM,Housing,HRA Housing Management,Legal & Professional Services,Invoice,"2,990.00",1301964,17/02/2015,A033955,HMCTS
North West Leicestershire District Council,31UH,HRAHM,Housing,HRA Housing Management,Asset Protection,Invoice,"2,350.00",1302136,25/02/2015,A042008,Mr Jason Page
North West Leicestershire District Council,31UH,HLC,Leisure Centres,Hermitage Leisure Centre,Water Charges (Metered),Invoice,"1,436.04",1302150,25/02/2015,A001468,Severn Trent Water Limited
North West Leicestershire District Council,31UH,HRAPBS,Housing,HRA Performance & Business Support,Agency Staff,Invoice,675.00,1302154,25/02/2015,A041893,Michael Page International Recruitment Ltd
North West Leicestershire District Council,31UH,HRAPBS,Housing,HRA Performance & Business Support,Agency Staff,Invoice,871.88,1302155,25/02/2015,A041893,Michael Page International Recruitment Ltd
North West Leicestershire District Council,31UH,HRAHM,Housing,HRA Housing Management,Internal Decorations,Invoice,"4,304.40",1302137,25/02/2015,A000876,PPG Architectural Coatings Ltd
North West Leicestershire District Council,31UH,HPLC,Leisure Centres,Hood Park Leisure Centre,Water Charges (Metered),Invoice,540.00,1302138,25/02/2015,A001468,Severn Trent Water Limited
North West Leicestershire District Council,31UH,HPLC,Leisure Centres,Hood Park Leisure Centre,Water Charges (Metered),Invoice,"1,115.89",1302139,25/02/2015,A001468,Severn Trent Water Limited
North West Leicestershire District Council,31UH,HLC,Leisure Centres,Hermitage Leisure Centre,Electricity,Invoice,"2,729.60",1302140,25/02/2015,A030266,Southern Electric
North West Leicestershire District Council,31UH,HPLC,Leisure Centres,Hood Park Leisure Centre,Electricity,Invoice,"1,527.77",1302141,25/02/2015,A030266,Southern Electric
North West Leicestershire District Council,31UH,ICT,Information Technology,ICT Services,Admin Equipment - Maintenance,Invoice,384.29,1302094,25/02/2015,A008908,Virgin Media Business
North West Leicestershire District Council,31UH,EES,Environmental Health,Environmental Services,Grants,Invoice,955.00,1302133,25/02/2015,A037119,W P Builders & Joiners
North West Leicestershire District Council,31UH,EES,Environmental Health,Environmental Services,Grants,Invoice,"1,875.00",1302134,25/02/2015,A038469,Leicestershire County Council
North West Leicestershire District Council,31UH,HLC,Leisure Centres,Hermitage Leisure Centre,Water Charges (Metered),Invoice,673.00,1302135,25/02/2015,A001468,Severn Trent Water Limited
North West Leicestershire District Council,31UH,HPLC,Leisure Centres,Hood Park Leisure Centre,Telephone Charge / Rental,Invoice,624.39,1302145,25/02/2015,A035373,Virgin Media Business
North West Leicestershire District Council,31UH,HS,Housing Strategy,Community - Housing Strategy,Grants,Invoice,"4,700.00",1302149,25/02/2015,A039302,EMH Homes
North West Leicestershire District Council,31UH,FINPLA,Finance,Financial Planning,Insurances,Invoice,939.16,1302090,25/02/2015,A001836,Zurich Insurance Company
North West Leicestershire District Council,31UH,EXCH,Finance,Exchequer Services,Agency Staff,Invoice,"18,895.38",1302069,25/02/2015,A036958,Comensura Limited
North West Leicestershire District Council,31UH,HRAPBS,Housing,HRA Performance & Business Support,Agency Staff,Invoice,843.75,1302158,25/02/2015,A041893,Michael Page International Recruitment Ltd
North West Leicestershire District Council,31UH,HRAHM,Housing,HRA Housing Management,Gas,Invoice,"1,841.58",1302165,25/02/2015,A000528,E.on
North West Leicestershire District Council,31UH,PROPFM,Property Services,Property Facilities Management,Water Charges (Metered),Invoice,"1,657.68",1302166,25/02/2015,A001468,Severn Trent Water Limited
North West Leicestershire District Council,31UH,LDELC,Legal & Democratic,Electoral & Land Charges,Other Printing,Invoice,677.00,1302188,25/02/2015,A000434,Crestline Printers Limited
North West Leicestershire District Council,31UH,HRAHRM,Housing Repairs,HRA Housing Repairs & Maintenance,Servicing,Invoice,"9,498.06",1302221,25/02/2015,A033342,J Tomlinson Ltd
North West Leicestershire District Council,31UH,HRAHRM,Housing Repairs,HRA Housing Repairs & Maintenance,Agency Staff,Invoice,"1,347.50",1302224,25/02/2015,A041893,Michael Page International Recruitment Ltd
North West Leicestershire District Council,31UH,ECCTV,Planning & Development,Environment - Town Centre/CCTV,Expenditure against earmarked reserve,Invoice,"54,000.00",1302192,25/02/2015,A000950,Leicestershire County Council
North West Leicestershire District Council,31UH,LCM,Leisure & Culture,Leisure & Cult Mangt,Grants - Museums,Invoice,"1,460.00",1302696,25/02/2015,A028013,Ashby de la Zouch Museum
North West Leicestershire District Council,31UH,HR,Corporate Director,Human Resources,Criminal Records Bureau,Invoice,632.00,1302239,24/02/2015,A027625,The Disclosure & Barring Service
North West Leicestershire District Council,31UH,CS,Communications,Corporate - Customer Services,Postages,Invoice,"2,050.00",1302685,25/02/2015,A000079,Neopost Limited
North West Leicestershire District Council,31UH,FINPLA,Finance,Financial Planning,Recreation & Play Areas,Invoice,"320,113.00",1302686,25/02/2015,A000300,Castle Donington Parish Coun
North West Leicestershire District Council,31UH,HRAHRM,Housing Repairs,HRA Housing Repairs & Maintenance,Decent Homes,Invoice,"434,079.50",1302687,25/02/2015,A039973,Lovell Partnerships Ltd
North West Leicestershire District Council,31UH,HRAHRM,Housing Repairs,HRA Housing Repairs & Maintenance,Decent Homes,Invoice,"344,046.15",1302688,25/02/2015,A039980,Kier Services Maintenance East Ltd
North West Leicestershire District Council,31UH,ENOWM,Street Management,Environment Waste Management,General Materials,Invoice,"8,788.00",1302229,25/02/2015,A024906,Straight Plc
North West Leicestershire District Council,31UH,EEHL,Environmental Health,Environmental Health & Licensing,Stray Dog Service,Invoice,"1,746.35",1302689,25/02/2015,A000385,College Garth Boarding Kenn
